Cogmind - Beta 10.1 @@@ ROGUE MODE // 2020.10.27 @ 00:00:50 Player: Shodan Result: Destroyed by Y-45 Defender with Beam Rifle Performance ------------- Evolutions (2) 1000 Regions Visited (7) 1400 Robots Destroyed (72) 360 Value Destroyed (3259) 3259 Prototype IDs (0) 0 Alien Tech Used (0) 0 Bonus (1101) 1101 TOTAL SCORE: 7120 Bonus ------- High Alert Combat Kills 168 Follower Combat Kills 251 Entered Garrisons 200 Used RIF Installer 500 Friendly Fire -18 Cogmind --------- Core Integrity 0/550 Matter 265/300 Energy 290/290 System Corruption 0% Temperature Cool (9) Movement Rolling (130) Ox4 Location -8/Materials Parts ------- > --- POWER (1) -------- Improved Deuterium Engine > --- PROPULSION (2) --- Armored Wheel Armored Wheel > --- UTILITY (6) ------ High-capacity Storage Unit High-capacity Storage Unit High-capacity Storage Unit Hacking Suite System Shield Relay Coupler [Behemoth] (7) > --- WEAPON (2) ------- Gauss Rifle Gauss Rifle > --- INVENTORY (28) --- Nuclear Core Improved Deuterium Engine Reinforced Deuterium Engine Fission Core Armored Wheel Armored Wheel Advanced Sensor Array Long-range Terrain Scanner Advanced Targeting Computer Light Armor Plating Light Armor Plating Medium Reactive Plating Relay Coupler [NC] (25) Relay Coupler [NC] (26) Relay Coupler [Swarmer] (42) Relay Coupler [Swarmer] (36) Relay Coupler [Swarmer] (29) Relay Coupler [Grunt] (21) Relay Coupler [Duelist] (25) Relay Coupler [Specialist] (17) Relay Coupler [Hunter] (13) Relay Coupler [Hunter] (13) Flak Cannon Advanced Assault Cannon Advanced Assault Cannon Rocket Launcher Improved Datajack Katana Peak State ------------ > --- POWER ------------ Improved Deuterium Engine > --- PROPULSION ------- Armored Wheel Armored Wheel > --- UTILITY ---------- High-capacity Storage Unit High-capacity Storage Unit High-capacity Storage Unit Long-range Terrain Scanner Relay Coupler [Sentry] Relay Coupler [Behemoth] > --- WEAPON ----------- Improved Datajack Katana > --- INVENTORY -------- Nuclear Core Improved Deuterium Engine Reinforced Deuterium Engine Fission Core Armored Wheel Armored Wheel Improved Heat Sink Advanced Targeting Computer Light Armor Plating Light Armor Plating Medium Reactive Plating Hacking Suite Relay Coupler [NC] Relay Coupler [NC] Relay Coupler [Swarmer] Relay Coupler [Swarmer] Relay Coupler [Swarmer] Relay Coupler [Grunt] Relay Coupler [Duelist] Relay Coupler [Specialist] Relay Coupler [Hunter] Relay Coupler [Hunter] Gauss Rifle Gauss Rifle Flak Cannon Advanced Assault Cannon Advanced Assault Cannon Rocket Launcher [Rating: 39] Favorites ----------- Power Improved Deuterium Engine Engine Improved Deuterium Engine Propulsion Armored Wheel Treads Improved Treads Leg Aluminum Leg Wheel Armored Wheel Utility High-capacity Storage Unit Device Long-range Terrain Scanner Storage High-capacity Storage Unit Processor Terrain Scan Processor Hackware Relay Coupler [Sentry] Protection Light Armor Plating Weapon Gauss Rifle Energy Gun Gatling Laser Ballistic Gun Gauss Rifle Launcher Rocket Launcher Impact Weapon Mace Slashing Weapon Katana Special Melee Weapon Improved Datajack Build | -11 -10 -10 -10 -9 -8 -8 -8 ------- Run | Scr Mat Min Exi Min Mat Gar Mat Slots Evolved 4 | . . . . . 4 . . Power . | . . . . . . . . Propulsion . | . . . . . . . . Utility 4 | . . . . . 4 . . Weapon . | . . . . . . . . Parts Attached 87 | 1 1 3 7 2 23 40 10 Power 6 | . . 1 . 1 2 2 . Engine 6 | . . 1 . 1 2 2 . Core . | . . . . . . . . Reactor . | . . . . . . . . Propulsion 15 | 1 . . 2 . 2 8 2 Treads 1 | . . . . . . 1 . Leg 3 | 1 . . . . . 2 . Wheel 11 | . . . 2 . 2 5 2 Hover . | . . . . . . . . Flight . | . . . . . . . . Utility 27 | . . . 5 . 10 9 3 Device 5 | . . . . . 4 . 1 Storage 8 | . . . 5 . 2 1 . Processor 2 | . . . . . 2 . . Hackware 7 | . . . . . . 5 2 Protection 5 | . . . . . 2 3 . Artifact . | . . . . . . . . Weapon 39 | . 1 2 . 1 9 21 5 Energy Gun 1 | . . . . . 1 . . Energy Cannon . | . . . . . . . . Ballistic Gun 18 | . 1 1 . . 5 8 3 Ballistic Cannon . | . . . . . . . . Launcher 10 | . . 1 . 1 2 5 1 Special Weapon . | . . . . . . . . Impact Weapon 2 | . . . . . 1 1 . Slashing Weapon 3 | . . . . . . 3 . Piercing Weapon . | . . . . . . . . Special Melee Weapon 5 | . . . . . . 4 1 Unidentified Prototypes . | . . . . . . . . Parts Lost 23 | . . 1 . . 10 12 . Power 5 | . . 1 . . 2 2 . Propulsion 6 | . . . . . 2 4 . Utility 4 | . . . . . 2 2 . Weapon 8 | . . . . . 4 4 . Highest Loss Streak 5 | . . 1 . . 5 4 . Average Slot Usage (%) 91 | . 85 85 91 85 79 96 98 Engine 9 | . 14 14 14 14 8 7 9 Leg 5 | . 28 28 16 . . 5 . Wheel 12 | . . . 11 28 14 9 16 Device 5 | . . . . . 9 9 . Storage 21 | . 14 14 20 14 16 24 27 Processor 5 | . . . . . 11 7 . Hackware 7 | . . . . . . 7 26 Protection 1 | . . . . . 1 3 . Ballistic Gun 14 | . 28 28 28 23 15 7 14 Launcher 1 | . . . . 4 1 1 . Slashing Weapon 2 | . . . . . . 4 1 Special Melee Weapon 2 | . . . . . . 4 1 Naked Turns . | . . . . . . . . Heaviest Build 135 | 10 10 9 85 93 135 113 114 Greatest Support 26 | 20 20 20 26 26 26 24 24 Greatest Overweight (x) 13 | . . . 3 3 13 11 9 Average Overweight (x) 4 | . . . 1 3 5 5 4 Largest Inventory Capacity 32 | 6 6 6 24 24 32 28 28 Average Capacity 24 | 6 6 6 16 24 29 25 28 Most Carried 32 | 6 6 6 13 24 32 28 28 Average Carried 21 | 5 5 5 8 17 27 22 27 Final Capacity 28 | 6 6 6 24 24 20 28 28 Final Carried 28 | 6 6 5 13 24 20 28 28 Class Distribution -------------------- 42% | Hauler-Mutant 37% | Bothacker-Mutant 12% | Mutant 7% | Hauler-Skirmisher Dominant Class ---------------- Mutant | -10/Materials Mutant | -10/Mines Mutant | -10/Exiles Hauler-Mutant | -9/Mines Hauler-Mutant | -8/Materials Bothacker-Mutant | -8/Garrison Bothacker-Mutant | -8/Materials Resources | -11 -10 -10 -10 -9 -8 -8 -8 ----------- Run | Scr Mat Min Exi Min Mat Gar Mat Matter Collected 2006 | 198 54 . 105 115 548 849 137 Remotely . | . . . . . . . . Salvage Created 2771 | . 114 20 . . 900 1179 558 Parts 163 | . 14 5 . . 63 52 29 Haulers Intercepted 2 | . . . . . 1 . 1 Recyclers Shooed . | . . . . . . . . Parts Field Recycled . | . . . . . . . . Retrieved Matter . | . . . . . . . . Parts Self-Destructed . | . . . . . . . . Prevented . | . . . . . . . . Kills | -11 -10 -10 -10 -9 -8 -8 -8 ------- Run | Scr Mat Min Exi Min Mat Gar Mat Combat Hostiles Destroyed 59 | . 4 2 . . 19 23 11 Melee 1 | . . . . . . 1 . Guns 41 | . 4 . . . 16 14 7 AOE 17 | . . 2 . . 3 8 4 Classes Destroyed 12 | . 3 . . . 7 . 2 Worker 1 | . . . . . . . 1 Builder 5 | . . . . . 4 . 1 Tunneler 1 | . . . . . . . 1 Hauler 2 | . . . . . 1 . 1 Operator 1 | . . . . . 1 . . Watcher 3 | . 1 . . . . 1 1 Swarmer 19 | . 3 2 . . 4 10 . Grunt 22 | . 1 . . . 7 9 5 Brawler 3 | . . . . . 1 . 2 Duelist 3 | . . . . . 1 1 1 Sentry 10 | . . . . . 5 2 3 Hunter 2 | . . . . . 1 1 . Best Kill Streak 8 | . 3 2 . . 7 5 8 Combat Bots Only 6 | . 3 2 . . 5 5 6 Max Kills in Single Turn 3 | . 1 2 . . 2 3 3 Gunslinging . | . . . . . . . . Exploded 3 | . . 2 . . 2 3 2 Melee 1 | . . . . . . 1 . Uniques/NPCs Destroyed . | . . . . . . . . Combat | -11 -10 -10 -10 -9 -8 -8 -8 -------- Run | Scr Mat Min Exi Min Mat Gar Mat Damage Taken 3505 | . 165 99 . . 1511 1262 468 Core 595 | . 36 8 . . 260 224 67 Absorbed by Shields . | . . . . . . . . Core Remaining (%) 91 | 100 . . . 82 . . . Volleys Fired 161 | . 16 1 . . 65 58 21 Largest 2 | . 2 1 . . 2 2 2 Hottest 80 | . 40 30 . . 80 66 56 Shots Fired 275 | . 32 1 . . 115 88 39 Gun 252 | . 32 . . . 112 72 36 Cannon . | . . . . . . . . Launcher 23 | . . 1 . . 3 16 3 Special . | . . . . . . . . Kinetic 242 | . 32 . . . 102 72 36 Thermal 10 | . . . . . 10 . . Explosive 23 | . . 1 . . 3 16 3 Electromagnetic . | . . . . . . . . Robot Hit Streak 12 | . 8 . . . 7 12 11 Robot Miss Streak 8 | . 8 2 . . 6 4 2 Penetration Max 1 | . . . . . 1 . 1 Secondary Targets 1 | . . . . . . . 1 Max Gunslinging Chain 1 | . . . . . . . 1 Shots Hit Robots 222 | . 15 . . . 69 107 31 Core Hits 118 | . 9 2 . . 37 49 21 Critical Hits 4 | . . . . . 2 2 . Critical Kills 3 | . . . . . 1 2 . Critical Parts Destroyed . | . . . . . . . . Melee Attacks 63 | . . . . . 1 60 2 Impact 1 | . . . . . 1 . . Slashing 40 | . . . . . . 40 . Piercing . | . . . . . . . . Sneak Attacks 13 | . . . . . 1 12 . Combat Hostiles 5 | . . . . . . 5 . Follow-up Attacks . | . . . . . . . . Damage Inflicted 7663 | . 134 229 . . 1916 4054 1330 Guns 3111 | . 134 . . . 1572 785 620 Cannons . | . . . . . . . . Explosions 2121 | . . 229 . . 281 901 710 Melee 2431 | . . . . . 63 2368 . Ramming . | . . . . . . . . Kinetic 2907 | . 134 . . . 1368 785 620 Thermal 675 | . . 83 . . 204 . 388 Explosive 1650 | . . 146 . . 281 901 322 Electromagnetic . | . . . . . . . . Impact 63 | . . . . . 63 . . Slashing 2368 | . . . . . . 2368 . Piercing . | . . . . . . . . Highest Corruption . | . . . . . . . . Average Corruption . | . . . . . . . . Corruption Purged . | . . . . . . . . Overload Shots . | . . . . . . . . Overflow Damage 421 | . . 55 . . 25 280 61 Projectiles . | . . . . . . . . Explosions 158 | . . 55 . . 22 20 61 Melee 263 | . . . . . 3 260 . Knockbacks . | . . . . . . . . Impact . | . . . . . . . . Kinetic . | . . . . . . . . Secondary . | . . . . . . . . Self-Inflicted Damage 239 | . . 74 . . 45 96 24 Shots 8 | . . 2 . . 2 3 1 Rammed . | . . . . . . . . Targets Rammed . | . . . . . . . . Kicked . | . . . . . . . . Crushed . | . . . . . . . . Highest Temperature 353 | . 12 14 . . 353 24 12 Average Temperature 65 | . 8 9 . . 112 7 5 Received Heat Transfer 1044 | . 24 . . . 432 372 216 Effects 5 | . . . . . 5 . . Energy Bleed 1 | . . . . . 1 . . Interference 3 | . . . . . 3 . . Matter Decay 1 | . . . . . 1 . . Siege Activations . | . . . . . . . . Robots Corrupted . | . . . . . . . . Combat Hostiles . | . . . . . . . . Parts Fried . | . . . . . . . . Impact Corruptions 1 | . . . . . 1 . . Robots Melted . | . . . . . . . . Combat Hostiles . | . . . . . . . . Parts Melted 1 | . . . . . 1 . . Heat Transferred 800 | . . 100 . . 450 . 250 Parts Sabotaged . | . . . . . . . . Parts Stolen . | . . . . . . . . Parts Stripped . | . . . . . . . . Power Chain Reactions . | . . . . . . . . Missiles Intercepted . | . . . . . . . . Alert | -11 -10 -10 -10 -9 -8 -8 -8 ------- Run | Scr Mat Min Exi Min Mat Gar Mat Peak Influence 929 | . 135 217 . 93 397 929 697 Initial 452 | . . 52 . . . 160 452 Average 417 | . 67 210 . 13 149 606 564 Maximum Alert Level 3 | . . 1 . . 1 3 2 Low Security (%) 30 | 100 100 3 . 100 74 2 . Level 1 19 | . . 96 . . 25 25 9 Level 2 31 | . . . . . . 33 90 Level 3 18 | . . . . . . 38 . Level 4 . | . . . . . . . . Level 5 . | . . . . . . . . High Security . | . . . . . . . . Max Security . | . . . . . . . . Squads Dispatched 7 | . . . . 1 4 . 2 Investigation 3 | . . . . 1 1 . 1 Extermination . | . . . . . . . . Reinforcement 3 | . . . . . 2 . 1 Assault . | . . . . . . . . Garrison 1 | . . . . . 1 . . Intercept . | . . . . . . . . Construction Impeded . | . . . . . . . . Haulers Reinforced . | . . . . . . . . Stealth | -11 -10 -10 -10 -9 -8 -8 -8 --------- Run | Scr Mat Min Exi Min Mat Gar Mat Distress Signals 2 | . 1 . . . . . 1 Communications Jammed . | . . . . . . . . Distress Signals . | . . . . . . . . Times Spotted 96 | . 7 3 . 2 33 35 16 Peak Tracking Total 8 | . 6 3 . 2 4 4 8 Tactical Retreats 8 | . . 1 . . 2 4 1 Traps | -11 -10 -10 -10 -9 -8 -8 -8 ------- Run | Scr Mat Min Exi Min Mat Gar Mat Traps Triggered 8 | . . . . . . 7 1 Indirectly . | . . . . . . . . Trap Hack Attempts . | . . . . . . . . Triggered . | . . . . . . . . Disarmed . | . . . . . . . . Reprogrammed . | . . . . . . . . Reused . | . . . . . . . . Traps Extracted . | . . . . . . . . Installed . | . . . . . . . . Triggered . | . . . . . . . . Machines | -11 -10 -10 -10 -9 -8 -8 -8 ---------- Run | Scr Mat Min Exi Min Mat Gar Mat Machines Disabled 18 | . . 8 . . 1 7 2 Max in Single Turn 8 | . . 8 . . 1 2 2 Garrison Relay 4 | . . . . . . 4 . Phase Generator 1 | . . . . . . 1 . Machines Sabotaged . | . . . . . . . . Garrisons Compromised . | . . . . . . . . Overloaded Fab Kills . | . . . . . . . . Fab Network Shutdowns . | . . . . . . . . Hacking | -11 -10 -10 -10 -9 -8 -8 -8 --------- Run | Scr Mat Min Exi Min Mat Gar Mat Machines Accessed 13 | . 2 . 1 1 5 . 4 Terminals 8 | . 2 . . . 4 . 2 Fabricators . | . . . . . . . . Repair Stations 1 | . . . . . . . 1 Recycling Units 1 | . . . . . . . 1 Scanalyzers . | . . . . . . . . Garrison Access 1 | . . . . . 1 . . Total Hacks 34 | . 5 . 1 1 12 . 15 Successful 19 | . 2 . 1 1 4 . 11 Failed 15 | . 3 . . . 8 . 4 Catastrophic 5 | . 1 . . . 3 . 1 Database Lockouts . | . . . . . . . . Manual 22 | . 5 . . . 9 . 8 Terminals 23 | . 5 . . . 10 . 8 Fabricators . | . . . . . . . . Repair Stations 4 | . . . . . . . 4 Recycling Units 3 | . . . . . . . 3 Scanalyzers . | . . . . . . . . Garrison Access 2 | . . . . . 2 . . Terminal Hacks 7 | . 1 . 1 1 1 . 3 Record 1 | . . . 1 . . . . Open Door 1 | . . . . 1 . . . Branch Access Points 1 | . 1 . . . . . . Unreport Threat 1 | . . . . . . . 1 Locate Traps 1 | . . . . . 1 . . Recall Investigation 1 | . . . . . . . 1 Recall Reinforcements 1 | . . . . . . . 1 Fabricator Hacks . | . . . . . . . . Repair Station Hacks 4 | . . . . . . . 4 Scan Component 2 | . . . . . . . 2 Repair 2 | . . . . . . . 2 Recycling Unit Hacks 3 | . . . . . . . 3 Process 1 | . . . . . . . 1 Report Inventory 1 | . . . . . . . 1 Retrieve Matter 1 | . . . . . . . 1 Scanalyzer . | . . . . . . . . Garrison Access Hacks 1 | . . . . . 1 . . Unlock Access 1 | . . . . . 1 . . Unauthorized Hacks 4 | . 1 . . . 2 . 1 Terminals 4 | . 1 . . . 2 . 1 Botnet 4 | . 1 . . . 2 . 1 Fabricators . | . . . . . . . . Repair Stations . | . . . . . . . . Recycling Units . | . . . . . . . . Scanalyzers . | . . . . . . . . Garrison Access . | . . . . . . . . Data Cores Recovered . | . . . . . . . . Used . | . . . . . . . . Hacking Detections 10 | . 2 . . . 5 . 3 Full Trace Events 1 | . . . . . 1 . . Feedback Events . | . . . . . . . . Feedback Blocked . | . . . . . . . . Robot Schematics Acquired . | . . . . . . . . Robots Built . | . . . . . . . . Matter . | . . . . . . . . Time . | . . . . . . . . Total Robot Build Rating . | . . . . . . . . Part Schematics Acquired . | . . . . . . . . Parts Built . | . . . . . . . . Matter . | . . . . . . . . Time . | . . . . . . . . Total Part Build Rating . | . . . . . . . . Parts Repaired 2 | . . . . . . . 2 Time 64 | . . . . . . . 64 Parts Recycled . | . . . . . . . . Recycled Matter 165 | . . . . . . . 165 Retrieved Matter 344 | . . . . . . . 344 Retrieved Components . | . . . . . . . . Parts Scanalyzed . | . . . . . . . . Part Schematics Acquired . | . . . . . . . . Parts Damaged . | . . . . . . . . Bothacking | -11 -10 -10 -10 -9 -8 -8 -8 ------------ Run | Scr Mat Min Exi Min Mat Gar Mat Used RIF Installer 1 | . . . . . . 1 . Robots Hacked 9 | . . . . . . 7 2 Non-combat 1 | . . . . . . . 1 Combat 8 | . . . . . . 7 1 Robot Hacks Applied 12 | . . . . . . 10 2 parse_system 2 | . . . . . . 1 1 scatter_targeting 2 | . . . . . . 2 . spike_heat 1 | . . . . . . 1 . reboot_system 1 | . . . . . . 1 . go_dormant 1 | . . . . . . . 1 formatsys_high 5 | . . . . . . 5 . Relay Couplers Released 15 | . . . . . . 15 . Machine Destruction 15 | . . . . . . 15 . Attached 5 | . . . . . . 5 . Robots Rewired 3 | . . . . . . 3 . Allies Hacked . | . . . . . . . . Hacks Repelled . | . . . . . . . . Allies | -11 -10 -10 -10 -9 -8 -8 -8 -------- Run | Scr Mat Min Exi Min Mat Gar Mat Total Allies 11 | . . . . 3 . 8 . Largest Group 3 | . . . . 3 2 3 2 Highest-Rated Group 97 | . . . . 40 24 97 97 Highest-Rated Ally 81 | . . . . 16 16 81 81 Total Orders 2 | . . . . . . 2 . STAY 1 | . . . . . . 1 . FOLLOW 1 | . . . . . . 1 . Ally Attacks 55 | . . . . 17 8 23 7 Total Damage 791 | . . . . 166 106 407 112 Kills 9 | . . . . 4 1 3 1 Allies Corrupted . | . . . . . . . . Allies Melted . | . . . . . . . . Intel | -11 -10 -10 -10 -9 -8 -8 -8 ------- Run | Scr Mat Min Exi Min Mat Gar Mat Robot Analysis Total . | . . . . . . . . Derelict Logs Recovered 1 | . . . . 1 . . . Drone Launches . | . . . . . . . . Drone Recoveries . | . . . . . . . . Exploration | -11 -10 -10 -10 -9 -8 -8 -8 ------------- Run | Scr Mat Min Exi Min Mat Gar Mat Turns Passed 4615 | 5 174 51 570 426 806 1910 673 Spaces Moved 2506 | 2 106 38 418 325 365 839 413 Core . | . . . . . . . . Treads 9 | . . . . . . 9 . Legs 580 | 2 106 38 241 . . 193 . Wheels 1917 | . . . 177 325 365 637 413 Hover . | . . . . . . . . Flight . | . . . . . . . . Fastest Speed 100 | 120 120 120 110 120 100 120 130 Average Speed 145 | 120 120 120 130 120 146 172 133 Slowest Speed 270 | 120 120 120 150 120 210 270 180 Overloaded Moves . | . . . . . . . . Propulsion Burnouts . | . . . . . . . . Robots Hopped . | . . . . . . . . Cave-ins Triggered . | . . . . . . . . Exploration Rate (%) 46 | 2 46 13 59 73 37 95 50 Regions Visited 7 Branch Regions 3 Pre-discovered Areas 1 | . . . 1 . . . . Known Exits Taken 2 | . 1 . . . 1 . . Unknown Exits Taken 4 | 1 . 1 1 1 . . . Scrap Searched 1 | . . . . 1 . . . Spaces Dug . | . . . . . . . . Terrain Destroyed 236 | . . 37 . . 26 111 62 Melee . | . . . . . . . . Projectile 3 | . . . . . 2 1 . AOE 233 | . . 37 . . 24 110 62 Terrain Rammed . | . . . . . . . . Walls Destroyed . | . . . . . . . . Machines Disabled . | . . . . . . . . Actions | -11 -10 -10 -10 -9 -8 -8 -8 --------- Run | Scr Mat Min Exi Min Mat Gar Mat Total 3122 | 5 127 41 442 361 515 1137 494 Wait 169 | . 1 . . 23 28 77 40 Move 2500 | 1 105 37 417 324 365 838 413 Hop . | . . . . . . . . Pick Up 82 | 1 2 . 13 11 24 27 4 Fast Attach 18 | 1 . . 2 . 8 5 2 Attach 26 | . . 1 . . 9 15 1 Detach 3 | . . . . . 1 2 . Swap 43 | . 1 2 5 2 6 20 7 Drop 33 | 2 2 . 5 1 8 11 4 Fire 161 | . 16 1 . . 65 58 21 Melee 63 | . . . . . 1 60 2 Ram . | . . . . . . . . Kick . | . . . . . . . . Crush . | . . . . . . . . Escape Stasis 20 | . . . . . . 20 . Rewire 4 | . . . . . . 4 . Trap . | . . . . . . . . Miscellaneous . | . . . . . . . . Route ------- -11/Scrapyard -10/Materials (discovered 2 exits: [*Mat] / *Min) -10/Mines -10/Exiles -9/Mines -8/Materials -8/Garrison (discovered 3 exits: *Mat x3) -8/Materials (discovered 1 exit: [*Fac]) History --------- Turn | Location | Event 4 | -11/Scrapyard | Discovered new exit (range 1) 6 | -11/Scrapyard | Entered Materials 12 | -10/Materials | Identified exit to Mines 145 | -10/Materials | Discovered new exit (range 13) 180 | -10/Materials | Entered Mines 226 | -10/Mines | Deemed a non-threat by the Exiles lab entrance 226 | -10/Mines | Discovered new exit (range 5) 231 | -10/Mines | Entered Exiles 261 | -10/Exiles | Met 8R-AWN 280 | -10/Exiles | Met EX-HEX 301 | -10/Exiles | Build established: Mutant 523 | -10/Exiles | Met EX-DEC 529 | -10/Exiles | Learned location of Zion (-6) 638 | -10/Exiles | Discovered new exit (range 14) 801 | -10/Exiles | Entered Mines 872 | -9/Mines | Build established: Hauler-Mutant 943 | -9/Mines | Assisted by bots powering up and referring to "LRC-V3" 1023 | -9/Mines | Learned Materials emergency access door positions 1043 | -9/Mines | Met a Derelict shopkeep closing up shop 1168 | -9/Mines | Discovered new exit (range 6) 1227 | -9/Mines | Entered Materials 1227 | -8/Materials | Accompanied by 2 allies 1227 | -8/Materials | Evolved 4 slots: Utility x4 1737 | -8/Materials | Build established: Hauler-Skirmisher 1896 | -8/Materials | Lost 5 parts (1p1u3w) 1960 | -8/Materials | Garrison activated, responded to threat 2033 | -8/Materials | Identified exit to Garrison 2033 | -8/Materials | Entered Garrison 2098 | -8/Garrison | Core integrity fell below 50% 2124 | -8/Garrison | Triggered checkpoint 2240 | -8/Garrison | Discovered new exit (range 18) 2287 | -8/Garrison | Build established: Hauler-Mutant 2335 | -8/Garrison | Triggered checkpoint 2402 | -8/Garrison | Discovered new exit (range 11) 2428 | -8/Garrison | Installed Relay Interface Framework 2495 | -8/Garrison | Triggered checkpoint 2552 | -8/Garrison | Lost 3 parts (1p2w) 2562 | -8/Garrison | Garrison Relay disabled 2652 | -8/Garrison | Triggered checkpoint 2658 | -8/Garrison | Triggered checkpoint 2690 | -8/Garrison | Lost 4 parts (2n1u1w) 2872 | -8/Garrison | Triggered checkpoint 2912 | -8/Garrison | Garrison Relay disabled 3016 | -8/Garrison | Phase Generator disabled 3194 | -8/Garrison | Triggered checkpoint 3196 | -8/Garrison | Core integrity fell below 20% 3215 | -8/Garrison | Build established: Bothacker-Mutant 3274 | -8/Garrison | Triggered checkpoint 3352 | -8/Garrison | Garrison Relay disabled 3461 | -8/Garrison | Discovered new exit (range 23) 3513 | -8/Garrison | Spotted B-75 Beast 3666 | -8/Garrison | Triggered checkpoint 3732 | -8/Garrison | Assimilated Beast 3a with formatsys_high 3771 | -8/Garrison | Garrison Relay disabled 3943 | -8/Garrison | Entered Materials 3943 | -8/Materials | Accompanied by 2 allies 4112 | -8/Materials | Discovered new exit (range 16) 4360 | -8/Materials | Repaired Arm. Wheel? 4433 | -8/Materials | Repaired Arm. Wheel 4616 | -8/Materials | Destroyed by Y-45 Defender with Beam Rifle Last Messages --------------- ETC: 32 04433_ Repair station completes Arm. Wheel repairs. 04433_ Acquired Arm. Wheel. 04471_ Slug penetrates Y-45 Defender. 04471_ Slug penetrates Wall. 04474_ Slug penetrates Y-45 Defender. 04477_ Y-45 Defender destroyed. 04485_ K-01 Serf collects debris. 04511_ Acquired 55 matter. 04524_ Acquired 18 matter. 04535_ K-01 Serf collects debris. 04537_ Detecting nearby Garrison Access. 04538_ K-01 Serf collects debris. 04551_ U-05 Engineer lays Concrete. 04551_ K-01 Serf collects debris. 04569_ Dropped Lgt. Armor Plating. 04574_ Acquired Lgt. Armor Plating. 04614_ W-25 Informer sends out distress signal. 04615_ W-25 Informer destroyed. 04615_ Slug penetrates Wall. Map ----- +----------------------------------------------------+ | ?????????????????????????????????????????????????? | | ?????????????????????????????????????????????????? | | ??????????????????????????????????????????????###? | | ??????????????????????????????????????????????? ? | | ???????????????????????????????????????????????# # | | ???????????????????????????????????????????????# # | | ???????????????????????????????????????????????# | | ???????????????????????????????????????? ????# | | ???????????????????????????????????????+ #???# | | ???????????????????????????????????????# #???# | | ???????????????????????????? ??????????# #??##+# | | ???????????????????????????# #?????????# #??# | | ???????????????????????????# #?????????# #??# | | ???????????????????????????# #?????????# #??# | | ?????????????????????####### ####?###### #??# | | ?????????????????????# #??# | | ?????????????????????# #??# | | ?????????????????????# """ """ ####### | | ?????????????????????# t """"""""" # | | ?????????????????????# """"" " # | | ?????????????????????# # | | ????????????????????## ] # " | | ????????????????????# + " | | ?????????? #### # " " " | | ?????????????? + r # "R" | | ????????????????????# @ # """ | | ????????????????????# ###+###########+######## | | ????????????????????## ## ??????? ?????? | | ?????????????????????# ?# """ #???""""" ???? | | ?????????????????????# ?# """ #? """"""""" #??? | | ?????????????????????# ?# """ ## """ """ #??? | | ?????????????????????#! ??# ## #??? | | ?????????????????????#%=??# #?? #??? | | ?????????????????????# ??########???* ##?? | | ????????????????????? ??????????????######### | | ????????????????????? ???????????????????? | | ????????????????????# ???????????????????? | | ????????????????????# ???????????????????? | | ????????????????????# ???????????????????????# | | ?????????????????????#????????????????????????##?? | | ?????????????????????????????????????????????????? | | ?????????????????????????????????????????????????? | | ?????????????????????????????????????????????????? | | ?????????????????????????????????????????????????? | | ?????????????????????????????????????????????????? | | ?????????????????????????????????????????????????? | | ?????????????????????????????????????????????????? | | ?????????????????????????????????????????????????? | | ?????????????????????????????????????????????????? | | ?????????????????????????????????????????????????? | +----------------------------------------------------+ Best States ------------- Heat Dissipation 45 Energy Generation 18 Energy Capacity 290 Matter Stores 300 Matter Capacity 300 Sight Range 20 Terrain Scan Range 24 Terrain Scan Density 85 Armor Coverage 150 Core Shielding 20 Evasion (%) 40 Recoil Reduction 1 Offensive Hacking 10 Defensive Hacking 10 Relay Coupler Types 31 Relay Coupler Value 2 Item Schematics ----------------- None Robot Schematics ------------------ None Fabricated ------------ Nothing Alien Tech Used ----------------- None Achievements -------------- Packrat Challenges ------------ None Game ------ Seed CompositeSmallAmplifier Manual? 0 Play Time 00:57:24 Cumulative 89.8 hours Start 2020.10.26 @ 23:05:52 End 2020.10.27 @ 00:00:50 Sessions 1 Manual Loads 0 Difficulty Rogue Special Mode None Game No. 101 Rogue 101 Adventurer 0 Explorer 0 Win Type - Total 1 Types 1/0/0/0/0/0/0/0/0 Lore% 54 Gallery% 60 Achievement% 47 Wizard Run 0 Options --------- ASCII 0 Keyboard 0 Movement Numpad Keybinds 0 Fullscreen 1 Font 24/Smallcaps Map View 76x50 Tactical HUD 1 Map Filters NONE Filters NONE Steam 1 RUN: 959b8e54-1491-489d-97a1-3c398b0c8a40